[Event "Early-Titled-Tuesday-Blitz-January-30-2024"]
[Site "Chess.com"]
[Date "2024.01.30"]
[Round "3"]
[White "Mohamed-almado"]
[Black "Der_Balak_3Halak"]
[Result "0-1"]
[WhiteElo "1590"]
[BlackElo "2335"]
[TimeControl "180+1"]
[EndTime "8:30:55 PST"]
[Termination "Der_Balak_3Halak won on time"]

1. d4 {[%clk 0:03:00.9]} 1... d5 {[%clk 0:02:58.6]} 2. c4 {[%clk 0:03:00.2]}
2... c6 {[%clk 0:02:58.1]} 3. Nc3 {[%clk 0:03:00]} 3... Nf6 {[%clk 0:02:57.4]}
4. Bf4 {[%clk 0:03:00.1]} 4... e6 {[%clk 0:02:52.2]} 5. c5 {[%clk 0:02:59.4]}
5... b6 {[%clk 0:02:48.6]} 6. b4 {[%clk 0:02:58.1]} 6... Ba6 {[%clk 0:02:27.4]}
7. f3 {[%clk 0:02:52.2]} 7... Be7 {[%clk 0:02:25.7]} 8. e3 {[%clk 0:02:40.1]}
8... Bxf1 {[%clk 0:02:24.4]} 9. Kxf1 {[%clk 0:02:39.7]} 9... O-O {[%clk
0:02:24.6]} 10. h3 {[%clk 0:02:32.5]} 10... a5 {[%clk 0:02:15.5]} 11. a3 {[%clk
0:02:32.3]} 11... Na6 {[%clk 0:02:08.9]} 12. Rb1 {[%clk 0:02:25.3]} 12... axb4
{[%clk 0:01:59.6]} 13. axb4 {[%clk 0:02:25.4]} 13... Nd7 {[%clk 0:01:55.8]} 14.
Nge2 {[%clk 0:02:24.8]} 14... e5 {[%clk 0:01:54.5]} 15. Bg3 {[%clk 0:02:22.8]}
15... Bg5 {[%clk 0:01:46.1]} 16. f4 {[%clk 0:02:20.5]} 16... exf4 {[%clk
0:01:42.9]} 17. Bxf4 {[%clk 0:02:17.3]} 17... Re8 {[%clk 0:01:39.1]} 18. Kf2
{[%clk 0:02:03.4]} 18... Qe7 {[%clk 0:01:33.6]} 19. Qd3 {[%clk 0:01:59.6]} 19...
b5 {[%clk 0:01:19.7]} 20. g3 {[%clk 0:01:56]} 20... h5 {[%clk 0:01:14.3]} 21. h4
{[%clk 0:01:52.4]} 21... Bxf4 {[%clk 0:01:14.3]} 22. gxf4 {[%clk 0:01:42.9]}
22... Nf6 {[%clk 0:01:13.9]} 23. Rhg1 {[%clk 0:01:20.5]} 23... Ng4+ {[%clk
0:01:10]} 24. Rxg4 {[%clk 0:01:19.3]} 24... hxg4 {[%clk 0:01:10.9]} 25. Rh1
{[%clk 0:01:16.8]} 25... Nxb4 {[%clk 0:01:10.9]} 26. Qd2 {[%clk 0:01:02.2]}
26... Nc2 {[%clk 0:00:24.8]} 27. Qxc2 {[%clk 0:00:36.3]} 27... Qxe3+ {[%clk
0:00:24.7]} 28. Ke1 {[%clk 0:00:36.1]} 28... Ra1+ {[%clk 0:00:23.1]} 29. Nd1
{[%clk 0:00:26.8]} 29... b4 {[%clk 0:00:20.5]} 30. Rf1 {[%clk 0:00:12.2]} 30...
b3 {[%clk 0:00:20.4]} 31. Qd2 {[%clk 0:00:10.5]} 31... Qxd2+ {[%clk 0:00:18.6]}
32. Kxd2 {[%clk 0:00:10.7]} 32... Ra2+ {[%clk 0:00:19]} 33. Kc3 {[%clk
0:00:08.2]} 33... Rexe2 {[%clk 0:00:19.5]} 34. Kxb3 {[%clk 0:00:08.3]} 34... g3
{[%clk 0:00:18]} 35. Rg1 {[%clk 0:00:08.2]} 35... g2 {[%clk 0:00:18.1]} 36. Kc3
{[%clk 0:00:04.4]} 36... Rac2+ {[%clk 0:00:17.2]} 37. Kd3 {[%clk 0:00:04.3]}
37... Rcd2+ {[%clk 0:00:18.1]} 38. Kc3 {[%clk 0:00:04.5]} 38... Kh7 {[%clk
0:00:17.9]} 39. Kb3 {[%clk 0:00:01.6]} 39... Kg6 {[%clk 0:00:16.3]} 40. Nc3
{[%clk 0:00:02]} 40... Rb2+ {[%clk 0:00:15.4]} 41. Ka3 {[%clk 0:00:02.4]} 41...
Rec2 {[%clk 0:00:14.8]} 42. Na4 {[%clk 0:00:02.6]} 42... Ra2+ {[%clk 0:00:14.3]}
43. Kb3 {[%clk 0:00:03.2]} 43... Kf5 {[%clk 0:00:13.8]} 44. Nb6 {[%clk
0:00:01.7]} 44... Rcb2+ {[%clk 0:00:12.8]} 45. Kc3 {[%clk 0:00:01.7]} 45... Kxf4
{[%clk 0:00:13]} 0-1

[Event "Early-Titled-Tuesday-Blitz-January-30-2024"]
[Site "Chess.com"]
[Date "2024.01.30"]
[Round "3"]
[White "DeArron_Fox"]
[Black "Vlad_Lukiianchuk"]
[Result "0-1"]
[WhiteElo "2461"]
[BlackElo "2635"]
[TimeControl "180+1"]
[EndTime "8:30:58 PST"]
[Termination "Vlad_Lukiianchuk won on time"]

1. d4 {[%clk 0:03:00.9]} 1... Nf6 {[%clk 0:02:58.5]} 2. c4 {[%clk 0:03:00.9]}
2... e6 {[%clk 0:02:57.7]} 3. Nf3 {[%clk 0:03:00.7]} 3... b6 {[%clk 0:02:54]} 4.
g3 {[%clk 0:03:00.8]} 4... Bb7 {[%clk 0:02:54.1]} 5. Bg2 {[%clk 0:03:01.2]} 5...
Be7 {[%clk 0:02:53.4]} 6. O-O {[%clk 0:03:00.5]} 6... O-O {[%clk 0:02:53.5]} 7.
Qc2 {[%clk 0:02:57.1]} 7... Be4 {[%clk 0:02:52.8]} 8. Qb3 {[%clk 0:02:56.5]}
8... c5 {[%clk 0:02:30.4]} 9. Nc3 {[%clk 0:02:54.4]} 9... Bb7 {[%clk 0:02:27.9]}
10. d5 {[%clk 0:02:49.7]} 10... exd5 {[%clk 0:02:19.5]} 11. cxd5 {[%clk
0:02:48.2]} 11... Re8 {[%clk 0:02:14.8]} 12. e4 {[%clk 0:02:34.2]} 12... d6
{[%clk 0:02:04.2]} 13. Re1 {[%clk 0:02:17.2]} 13... Nbd7 {[%clk 0:02:02.5]} 14.
Bf4 {[%clk 0:02:08]} 14... Nh5 {[%clk 0:01:57.1]} 15. Be3 {[%clk 0:02:07.7]}
15... Bf6 {[%clk 0:01:39.9]} 16. Nd2 {[%clk 0:01:37.9]} 16... Ne5 {[%clk
0:01:26.6]} 17. Nc4 {[%clk 0:00:50.2]} 17... Ng4 {[%clk 0:00:43.9]} 18. Bd2
{[%clk 0:00:42.7]} 18... Bd4 {[%clk 0:00:30.3]} 19. Ne3 {[%clk 0:00:27.9]} 19...
Bc8 {[%clk 0:00:26.6]} 20. Nxg4 {[%clk 0:00:11.3]} 20... Bxg4 {[%clk 0:00:26.4]}
21. Be3 {[%clk 0:00:12.2]} 21... Bxe3 {[%clk 0:00:18]} 22. Rxe3 {[%clk
0:00:13.1]} 22... Qd7 {[%clk 0:00:14.1]} 23. a4 {[%clk 0:00:07.8]} 23... Rab8
{[%clk 0:00:13.5]} 24. Nb5 {[%clk 0:00:03]} 24... a6 {[%clk 0:00:11.3]} 25. Nc3
{[%clk 0:00:03]} 25... b5 {[%clk 0:00:12]} 26. axb5 {[%clk 0:00:03.9]} 26...
axb5 {[%clk 0:00:12.9]} 27. Ra6 {[%clk 0:00:04]} 27... b4 {[%clk 0:00:12.4]} 28.
Na4 {[%clk 0:00:04.1]} 28... Nf6 {[%clk 0:00:06.8]} 29. Rb6 {[%clk 0:00:01.7]}
29... Ra8 {[%clk 0:00:05.5]} 30. Rc6 {[%clk 0:00:01.3]} 30... Qa7 {[%clk
0:00:04.3]} 31. Nb6 {[%clk 0:00:02]} 31... Qa1+ {[%clk 0:00:04.5]} 32. Bf1
{[%clk 0:00:02.5]} 32... Bh3 {[%clk 0:00:04.2]} 33. Qd3 {[%clk 0:00:02.3]} 33...
Ra2 {[%clk 0:00:03.2]} 34. e5 {[%clk 0:00:01.4]} 34... Ng4 {[%clk 0:00:02.7]}
35. exd6 {[%clk 0:00:01.4]} 35... Nxe3 {[%clk 0:00:02.8]} 36. fxe3 {[%clk
0:00:02.3]} 36... Rxb2 {[%clk 0:00:02.1]} 37. d7 {[%clk 0:00:02.3]} 37... Bxd7
{[%clk 0:00:01.8]} 38. Nxd7 {[%clk 0:00:02.3]} 38... Rb1 {[%clk 0:00:02.6]} 39.
Nb6 {[%clk 0:00:01.6]} 39... Rd1 {[%clk 0:00:03]} 40. Qe2 {[%clk 0:00:02]} 40...
b3 {[%clk 0:00:03.5]} 41. d6 {[%clk 0:00:02.1]} 41... b2 {[%clk 0:00:03.8]} 42.
d7 {[%clk 0:00:01.2]} 42... Rxd7 {[%clk 0:00:04.4]} 43. Nxd7 {[%clk 0:00:02.1]}
43... b1=Q {[%clk 0:00:05.1]} 44. Nxc5 {[%clk 0:00:01.3]} 44... Qg6 {[%clk
0:00:05]} 45. Rxg6 {[%clk 0:00:01.1]} 45... hxg6 {[%clk 0:00:05.1]} 46. Nd3
{[%clk 0:00:01.3]} 46... Qc3 {[%clk 0:00:05.4]} 0-1

[Event "Early-Titled-Tuesday-Blitz-January-30-2024"]
[Site "Chess.com"]
[Date "2024.01.30"]
[Round "3"]
[White "jcibarra"]
[Black "BigAl"]
[Result "1-0"]
[WhiteElo "2852"]
[BlackElo "2536"]
[TimeControl "180+1"]
[EndTime "8:31:00 PST"]
[Termination "jcibarra won on time"]

1. e4 {[%clk 0:03:00.9]} 1... c6 {[%clk 0:02:52.8]} 2. Nf3 {[%clk 0:03:01]} 2...
d5 {[%clk 0:02:52.7]} 3. d3 {[%clk 0:03:01.5]} 3... Nd7 {[%clk 0:02:42.8]} 4.
Qe2 {[%clk 0:02:59.1]} 4... e6 {[%clk 0:02:39.9]} 5. g3 {[%clk 0:02:59.2]} 5...
Ne7 {[%clk 0:02:37.6]} 6. Bg2 {[%clk 0:02:59.9]} 6... g6 {[%clk 0:02:38]} 7. h4
{[%clk 0:02:59.9]} 7... h6 {[%clk 0:02:36.8]} 8. O-O {[%clk 0:02:59.1]} 8... Bg7
{[%clk 0:02:37.4]} 9. c3 {[%clk 0:02:58.6]} 9... b6 {[%clk 0:02:37.3]} 10. Re1
{[%clk 0:02:54.3]} 10... Ba6 {[%clk 0:02:37.4]} 11. Qc2 {[%clk 0:02:47.6]} 11...
Qc7 {[%clk 0:02:34.6]} 12. d4 {[%clk 0:02:38.2]} 12... dxe4 {[%clk 0:02:25.1]}
13. Qxe4 {[%clk 0:02:39.1]} 13... Nf6 {[%clk 0:02:25.5]} 14. Qc2 {[%clk
0:02:35.4]} 14... Nh5 {[%clk 0:02:08.9]} 15. Ne5 {[%clk 0:02:32.4]} 15... Bb7
{[%clk 0:02:04.9]} 16. Na3 {[%clk 0:02:26.2]} 16... Rd8 {[%clk 0:02:01.8]} 17.
Nac4 {[%clk 0:02:22.7]} 17... O-O {[%clk 0:01:44]} 18. Ng4 {[%clk 0:02:20.9]}
18... Nf5 {[%clk 0:01:42]} 19. Qe4 {[%clk 0:02:14.5]} 19... Ba8 {[%clk
0:01:36.4]} 20. Qe2 {[%clk 0:02:08.9]} 20... c5 {[%clk 0:01:35.1]} 21. Bxa8
{[%clk 0:02:09]} 21... Rxa8 {[%clk 0:01:35.4]} 22. dxc5 {[%clk 0:02:06.2]} 22...
Qxc5 {[%clk 0:01:34.8]} 23. Nce5 {[%clk 0:02:06.8]} 23... Rad8 {[%clk
0:01:28.3]} 24. Kg2 {[%clk 0:02:00.4]} 24... Rd5 {[%clk 0:01:17.7]} 25. c4
{[%clk 0:01:54.8]} 25... Rdd8 {[%clk 0:01:11.6]} 26. b3 {[%clk 0:01:51]} 26...
Kh7 {[%clk 0:01:00.2]} 27. Bb2 {[%clk 0:01:48.8]} 27... Nd4 {[%clk 0:00:54.5]}
28. Bxd4 {[%clk 0:01:40.8]} 28... Rxd4 {[%clk 0:00:55.4]} 29. Nh2 {[%clk
0:01:25.6]} 29... Nf6 {[%clk 0:00:52.2]} 30. Nhf3 {[%clk 0:01:23.2]} 30... Rdd8
{[%clk 0:00:51.6]} 31. Qc2 {[%clk 0:01:19.4]} 31... b5 {[%clk 0:00:48.1]} 32.
Rad1 {[%clk 0:01:10.5]} 32... Rxd1 {[%clk 0:00:47.7]} 33. Rxd1 {[%clk
0:01:10.3]} 33... bxc4 {[%clk 0:00:48.3]} 34. bxc4 {[%clk 0:01:10.1]} 34... Kg8
{[%clk 0:00:44.8]} 35. Qa4 {[%clk 0:00:57.1]} 35... Rc8 {[%clk 0:00:38.4]} 36.
Qc2 {[%clk 0:00:42.8]} 36... a5 {[%clk 0:00:29.7]} 37. Rb1 {[%clk 0:00:40.6]}
37... Qa7 {[%clk 0:00:24.1]} 38. Rb5 {[%clk 0:00:39.5]} 38... Qa8 {[%clk
0:00:22.7]} 39. Qb1 {[%clk 0:00:28.9]} 39... Ne4 {[%clk 0:00:17.9]} 40. Rb7
{[%clk 0:00:23]} 40... Bxe5 {[%clk 0:00:15.4]} 41. Qxe4 {[%clk 0:00:16.2]} 41...
Bg7 {[%clk 0:00:07]} 42. Nd2 {[%clk 0:00:13.2]} 42... Rf8 {[%clk 0:00:05.3]} 43.
c5 {[%clk 0:00:09.7]} 43... a4 {[%clk 0:00:03.2]} 44. Nc4 {[%clk 0:00:05.7]}
44... Rc8 {[%clk 0:00:01.4]} 45. c6 {[%clk 0:00:06]} 45... Qa6 {[%clk
0:00:01.8]} 46. c7 {[%clk 0:00:03.8]} 46... Qa8 {[%clk 0:00:01.7]} 47. Nd6
{[%clk 0:00:03.9]} 47... Rxc7 {[%clk 0:00:01.5]} 48. Rxc7 {[%clk 0:00:04.7]}
48... Qxe4+ {[%clk 0:00:01.6]} 49. Nxe4 {[%clk 0:00:05.2]} 1-0

[Event "Early-Titled-Tuesday-Blitz-January-30-2024"]
[Site "Chess.com"]
[Date "2024.01.30"]
[Round "3"]
[White "ukchessbomber"]
[Black "Smile2005"]
[Result "1-0"]
[WhiteElo "2630"]
[BlackElo "2457"]
[TimeControl "180+1"]
[EndTime "8:31:00 PST"]
[Termination "ukchessbomber won by checkmate"]

1. b4 {[%clk 0:03:00.9]} 1... Nf6 {[%clk 0:02:59]} 2. Bb2 {[%clk 0:03:00.7]}
2... e6 {[%clk 0:02:58.6]} 3. a3 {[%clk 0:02:59.8]} 3... a5 {[%clk 0:02:58.4]}
4. b5 {[%clk 0:02:59.8]} 4... d5 {[%clk 0:02:57.8]} 5. e3 {[%clk 0:03:00.1]}
5... Be7 {[%clk 0:02:56.5]} 6. c4 {[%clk 0:02:59.2]} 6... c6 {[%clk 0:02:56]} 7.
Nf3 {[%clk 0:02:58]} 7... Nbd7 {[%clk 0:02:55.8]} 8. Be2 {[%clk 0:02:58.3]} 8...
O-O {[%clk 0:02:54.7]} 9. O-O {[%clk 0:02:58.6]} 9... Nc5 {[%clk 0:02:54.6]} 10.
a4 {[%clk 0:02:55.6]} 10... h6 {[%clk 0:02:50.9]} 11. Qc2 {[%clk 0:02:50.3]}
11... Re8 {[%clk 0:02:46.6]} 12. d3 {[%clk 0:02:50.1]} 12... Ncd7 {[%clk
0:02:37.8]} 13. Nbd2 {[%clk 0:02:48.7]} 13... Bd6 {[%clk 0:02:37.8]} 14. d4
{[%clk 0:02:43.7]} 14... e5 {[%clk 0:02:35.7]} 15. dxe5 {[%clk 0:02:43.2]} 15...
Nxe5 {[%clk 0:02:35.3]} 16. Nxe5 {[%clk 0:02:44.1]} 16... Bxe5 {[%clk
0:02:35.1]} 17. Bxe5 {[%clk 0:02:45]} 17... Rxe5 {[%clk 0:02:34.6]} 18. Nf3
{[%clk 0:02:45.9]} 18... Bf5 {[%clk 0:02:33]} 19. Qb2 {[%clk 0:02:42.3]} 19...
Re8 {[%clk 0:02:29.4]} 20. Rfd1 {[%clk 0:02:34.6]} 20... Qe7 {[%clk 0:02:25.9]}
21. Rac1 {[%clk 0:02:24.1]} 21... Qb4 {[%clk 0:01:55.7]} 22. Qa1 {[%clk
0:02:13.7]} 22... Ne4 {[%clk 0:01:47.3]} 23. cxd5 {[%clk 0:02:11]} 23... cxd5
{[%clk 0:01:42]} 24. Rxd5 {[%clk 0:02:11.9]} 24... Bg6 {[%clk 0:01:36.2]} 25.
Rc4 {[%clk 0:02:10.4]} 25... Qf8 {[%clk 0:01:33.3]} 26. h4 {[%clk 0:02:03.7]}
26... Rad8 {[%clk 0:01:31.8]} 27. Rxd8 {[%clk 0:01:42.7]} 27... Rxd8 {[%clk
0:01:32.7]} 28. Ne5 {[%clk 0:01:43.3]} 28... Bf5 {[%clk 0:01:09.5]} 29. Rc7
{[%clk 0:01:13.9]} 29... f6 {[%clk 0:00:55.3]} 30. Nf3 {[%clk 0:00:32.5]} 30...
b6 {[%clk 0:00:19.6]} 31. Nd4 {[%clk 0:00:31.3]} 31... Bc8 {[%clk 0:00:14.3]}
32. Qa2+ {[%clk 0:00:31.5]} 32... Kh7 {[%clk 0:00:12.4]} 33. Qc2 {[%clk
0:00:30.8]} 33... Qb4 {[%clk 0:00:08.7]} 34. Qxe4+ {[%clk 0:00:28.5]} 34... f5
{[%clk 0:00:07.6]} 35. Qe7 {[%clk 0:00:27.5]} 35... Qe1+ {[%clk 0:00:06.6]} 36.
Kh2 {[%clk 0:00:28]} 36... Rg8 {[%clk 0:00:06.8]} 37. Rxc8 {[%clk 0:00:21.5]}
37... Rxc8 {[%clk 0:00:05.8]} 38. Nxf5 {[%clk 0:00:22]} 38... Rg8 {[%clk
0:00:04.7]} 39. Bd3 {[%clk 0:00:22.3]} 39... Qxf2 {[%clk 0:00:03.9]} 40. Nd6+
{[%clk 0:00:19.9]} 40... Kh8 {[%clk 0:00:01]} 41. Nf7+ {[%clk 0:00:20.3]} 41...
Qxf7 {[%clk 0:00:01.2]} 42. Qxf7 {[%clk 0:00:21.2]} 42... g6 {[%clk 0:00:01.3]}
43. Bxg6 {[%clk 0:00:20.3]} 43... Rg7 {[%clk 0:00:02.2]} 44. Qf8+ {[%clk
0:00:20.6]} 44... Rg8 {[%clk 0:00:03.1]} 45. Qf6+ {[%clk 0:00:21.5]} 45... Rg7
{[%clk 0:00:03.2]} 46. Bf7 {[%clk 0:00:21.3]} 46... Kh7 {[%clk 0:00:02.4]} 47.
h5 {[%clk 0:00:21.9]} 47... Rg5 {[%clk 0:00:02.2]} 48. Bg6+ {[%clk 0:00:20.7]}
48... Kg8 {[%clk 0:00:03.1]} 49. Qf7+ {[%clk 0:00:21]} 49... Kh8 {[%clk
0:00:04]} 50. Qh7# {[%clk 0:00:21.9]} 1-0

[Event "Early-Titled-Tuesday-Blitz-January-30-2024"]
[Site "Chess.com"]
[Date "2024.01.30"]
[Round "3"]
[White "Attacks_Hurricane"]
[Black "CristianS27"]
[Result "0-1"]
[WhiteElo "2247"]
[BlackElo "2557"]
[TimeControl "180+1"]
[EndTime "8:31:01 PST"]
[Termination "CristianS27 won by checkmate"]

1. e4 {[%clk 0:03:00.9]} 1... e5 {[%clk 0:02:55.8]} 2. Nf3 {[%clk 0:03:00.3]}
2... Nc6 {[%clk 0:02:55]} 3. d4 {[%clk 0:03:00.6]} 3... exd4 {[%clk 0:02:55.9]}
4. Bc4 {[%clk 0:02:59.3]} 4... Nf6 {[%clk 0:02:56.1]} 5. O-O {[%clk 0:02:58.8]}
5... Nxe4 {[%clk 0:02:56]} 6. Re1 {[%clk 0:02:59.1]} 6... d5 {[%clk 0:02:53.3]}
7. Bxd5 {[%clk 0:02:59.3]} 7... Qxd5 {[%clk 0:02:54.2]} 8. Nc3 {[%clk 0:03:00]}
8... Qa5 {[%clk 0:02:53.8]} 9. Nxe4 {[%clk 0:02:53.6]} 9... Be6 {[%clk
0:02:54.3]} 10. Bg5 {[%clk 0:02:51.4]} 10... h6 {[%clk 0:02:52.9]} 11. Bh4
{[%clk 0:02:46.2]} 11... g5 {[%clk 0:02:52.5]} 12. Nxd4 {[%clk 0:01:58]} 12...
gxh4 {[%clk 0:02:35.2]} 13. Nf6+ {[%clk 0:01:51.8]} 13... Ke7 {[%clk 0:02:30.4]}
14. Nxc6+ {[%clk 0:01:49.8]} 14... bxc6 {[%clk 0:02:31.3]} 15. Qd7+ {[%clk
0:01:39]} 15... Kxf6 {[%clk 0:02:31.4]} 16. Qd4+ {[%clk 0:01:39.4]} 16... Kg6
{[%clk 0:01:50.4]} 17. Qxh8 {[%clk 0:01:37]} 17... Qg5 {[%clk 0:01:21.8]} 18.
Qd4 {[%clk 0:00:58.8]} 18... Bc5 {[%clk 0:01:12.9]} 19. Qe4+ {[%clk 0:00:57.4]}
19... Kg7 {[%clk 0:01:04.7]} 20. c4 {[%clk 0:00:35.4]} 20... Rd8 {[%clk
0:00:56.7]} 21. Rad1 {[%clk 0:00:26.6]} 21... Rxd1 {[%clk 0:00:26.9]} 22. Rxd1
{[%clk 0:00:27.5]} 22... h3 {[%clk 0:00:25.6]} 23. a3 {[%clk 0:00:20.9]} 23...
Qxg2+ {[%clk 0:00:18.9]} 24. Qxg2+ {[%clk 0:00:21.8]} 24... hxg2 {[%clk
0:00:19.8]} 25. Kxg2 {[%clk 0:00:22.7]} 25... Bxc4 {[%clk 0:00:18.6]} 26. Rd7
{[%clk 0:00:21.3]} 26... Bd6 {[%clk 0:00:16.5]} 27. f3 {[%clk 0:00:18.9]} 27...
Bd5 {[%clk 0:00:16.5]} 28. Rd8 {[%clk 0:00:17.1]} 28... Be5 {[%clk 0:00:14.9]}
29. b4 {[%clk 0:00:16]} 29... Bb2 {[%clk 0:00:13.4]} 30. a4 {[%clk 0:00:14.9]}
30... a6 {[%clk 0:00:10.7]} 31. a5 {[%clk 0:00:12.4]} 31... Bc3 {[%clk
0:00:08.6]} 32. Rb8 {[%clk 0:00:12.8]} 32... Bc4 {[%clk 0:00:08.2]} 33. Rb7
{[%clk 0:00:12.2]} 33... Bb5 {[%clk 0:00:08.3]} 34. Rxc7 {[%clk 0:00:11.1]}
34... Bxb4 {[%clk 0:00:08.8]} 35. Rd7 {[%clk 0:00:11.8]} 35... Bxa5 {[%clk
0:00:09]} 36. Rd4 {[%clk 0:00:12.6]} 36... Bc3 {[%clk 0:00:08.2]} 37. Rg4+
{[%clk 0:00:13.5]} 37... Kf6 {[%clk 0:00:08.2]} 38. h4 {[%clk 0:00:14.3]} 38...
a5 {[%clk 0:00:08.3]} 39. Rg8 {[%clk 0:00:14.1]} 39... a4 {[%clk 0:00:08.1]} 40.
Rh8 {[%clk 0:00:14.9]} 40... Kg7 {[%clk 0:00:07]} 41. Ra8 {[%clk 0:00:15.8]}
41... Bb2 {[%clk 0:00:06.4]} 42. f4 {[%clk 0:00:14.3]} 42... a3 {[%clk
0:00:06.9]} 43. f5 {[%clk 0:00:14.7]} 43... Bc4 {[%clk 0:00:06.9]} 44. Kf3
{[%clk 0:00:13.1]} 44... a2 {[%clk 0:00:07.1]} 45. Kg4 {[%clk 0:00:13.7]} 45...
a1=Q {[%clk 0:00:06.4]} 46. Rxa1 {[%clk 0:00:12.6]} 46... Bxa1 {[%clk
0:00:07.3]} 47. f6+ {[%clk 0:00:11.9]} 47... Bxf6 {[%clk 0:00:08.2]} 48. Kh5
{[%clk 0:00:11.4]} 48... Be2# {[%clk 0:00:08.4]} 0-1

[Event "Early-Titled-Tuesday-Blitz-January-30-2024"]
[Site "Chess.com"]
[Date "2024.01.30"]
[Round "3"]
[White "FairChess_on_YouTube"]
[Black "Iball95"]
[Result "1-0"]
[WhiteElo "3094"]
[BlackElo "2781"]
[TimeControl "180+1"]
[EndTime "8:31:02 PST"]
[Termination "FairChess_on_YouTube won by checkmate"]

1. d4 {[%clk 0:03:00.9]} 1... d5 {[%clk 0:02:58.2]} 2. Nf3 {[%clk 0:03:00.2]}
2... Nf6 {[%clk 0:02:56.9]} 3. Bf4 {[%clk 0:02:58.5]} 3... Bf5 {[%clk
0:02:55.6]} 4. e3 {[%clk 0:02:58]} 4... e6 {[%clk 0:02:56.3]} 5. Bd3 {[%clk
0:02:57.7]} 5... Bxd3 {[%clk 0:02:54.9]} 6. cxd3 {[%clk 0:02:57.5]} 6... Nbd7
{[%clk 0:02:55.5]} 7. O-O {[%clk 0:02:56.8]} 7... Bd6 {[%clk 0:02:53.9]} 8. Bg3
{[%clk 0:02:55.1]} 8... O-O {[%clk 0:02:53.3]} 9. Nbd2 {[%clk 0:02:55.1]} 9...
Bxg3 {[%clk 0:02:51.6]} 10. hxg3 {[%clk 0:02:56]} 10... c5 {[%clk 0:02:51.9]}
11. Rc1 {[%clk 0:02:54.7]} 11... Qb6 {[%clk 0:02:46.7]} 12. Qb3 {[%clk
0:02:50.9]} 12... Rfc8 {[%clk 0:02:39.9]} 13. Qa3 {[%clk 0:02:42.1]} 13... Rc7
{[%clk 0:02:33]} 14. Rc3 {[%clk 0:02:39.8]} 14... Rac8 {[%clk 0:02:24.4]} 15.
Rb3 {[%clk 0:02:32.9]} 15... Qa6 {[%clk 0:02:17.5]} 16. Qxa6 {[%clk 0:02:31.9]}
16... bxa6 {[%clk 0:02:18.4]} 17. Ra3 {[%clk 0:02:24.4]} 17... Rb8 {[%clk
0:02:17.6]} 18. b3 {[%clk 0:02:14]} 18... cxd4 {[%clk 0:02:16.3]} 19. Nxd4
{[%clk 0:02:12.5]} 19... Rb6 {[%clk 0:02:03.3]} 20. Rd1 {[%clk 0:01:50.9]} 20...
Kf8 {[%clk 0:01:56.6]} 21. Ra5 {[%clk 0:01:41.6]} 21... Ke7 {[%clk 0:01:32.1]}
22. a3 {[%clk 0:01:41.1]} 22... g6 {[%clk 0:01:26.8]} 23. b4 {[%clk 0:01:40.2]}
23... Rc3 {[%clk 0:01:23.6]} 24. Nb1 {[%clk 0:01:34.3]} 24... Rc7 {[%clk
0:01:22.4]} 25. Nb3 {[%clk 0:01:16.4]} 25... Rc2 {[%clk 0:00:53.9]} 26. Rd2
{[%clk 0:01:14.4]} 26... Rxd2 {[%clk 0:00:48.9]} 27. N1xd2 {[%clk 0:01:11.9]}
27... Ne5 {[%clk 0:00:40.3]} 28. Nc5 {[%clk 0:01:02.9]} 28... Nfd7 {[%clk
0:00:40.2]} 29. Ndb3 {[%clk 0:00:55.7]} 29... Nb8 {[%clk 0:00:32.3]} 30. Kf1
{[%clk 0:00:48.6]} 30... Kd6 {[%clk 0:00:29.2]} 31. Ke2 {[%clk 0:00:47.7]} 31...
Nec6 {[%clk 0:00:28.4]} 32. Ra4 {[%clk 0:00:47.6]} 32... h5 {[%clk 0:00:27.5]}
33. d4 {[%clk 0:00:45]} 33... Ke7 {[%clk 0:00:19.6]} 34. Kd2 {[%clk 0:00:44.2]}
34... Kd6 {[%clk 0:00:19.8]} 35. Kc3 {[%clk 0:00:44.8]} 35... Kc7 {[%clk
0:00:19.6]} 36. Nc1 {[%clk 0:00:43.2]} 36... Kd6 {[%clk 0:00:19.2]} 37. N1d3
{[%clk 0:00:43.8]} 37... Kc7 {[%clk 0:00:18.6]} 38. Nf4 {[%clk 0:00:39.2]} 38...
Kd6 {[%clk 0:00:18.2]} 39. Nh3 {[%clk 0:00:39.8]} 39... Ke7 {[%clk 0:00:17.5]}
40. Ng5 {[%clk 0:00:39.7]} 40... Nd8 {[%clk 0:00:16.9]} 41. e4 {[%clk
0:00:28.8]} 41... dxe4 {[%clk 0:00:15.3]} 42. Ngxe4 {[%clk 0:00:29.7]} 42...
Ndc6 {[%clk 0:00:15.3]} 43. Nd2 {[%clk 0:00:28.4]} 43... Nd8 {[%clk 0:00:08.6]}
44. Nc4 {[%clk 0:00:28.4]} 44... Rc6 {[%clk 0:00:09.1]} 45. b5 {[%clk
0:00:18.9]} 45... axb5 {[%clk 0:00:10]} 46. Rxa7+ {[%clk 0:00:19.3]} 46... Ke8
{[%clk 0:00:07.5]} 47. Ne5 {[%clk 0:00:18.8]} 47... Rd6 {[%clk 0:00:05.9]} 48.
Ra8 {[%clk 0:00:18.2]} 48... Nbc6 {[%clk 0:00:05.5]} 49. Nb7 {[%clk 0:00:17.7]}
49... Rd5 {[%clk 0:00:03.4]} 50. Nxc6 {[%clk 0:00:17]} 50... b4+ {[%clk
0:00:03.8]} 51. axb4 {[%clk 0:00:16.5]} 51... Ra5 {[%clk 0:00:04.1]} 52. Rxd8#
{[%clk 0:00:16.3]} 1-0